bitfinex-derivatives/quotes_BTCF0:USTF0_20250411
["timestamp","ask_amount","ask_price","bid_price","bid_amount"]
[1744363602955,0.12219361,81921.0,81920.0,0.4211]
[1744363605863,0.12219361,81921.0,81920.0,0.5432411]
[1744363606249,0.12219361,81921.0,81920.0,0.4211]
[1744363606454,0.12219361,81921.0,81920.0,0.5432411]
[1744363607057,0.1221396,81921.0,81920.0,0.5432411]
[1744363607359,0.1221796,81921.0,81920.0,0.55932361]
[1744363608669,4e-05,81921.0,81920.0,0.55932361]
[1744363609059,0.1342832,81928.0,81927.0,0.1221306]
[1744363609364,0.13433721,81928.0,81927.0,0.4829306]
[1744363609565,0.15338311,81928.0,81927.0,0.49901311]
[1744363610066,0.15338311,81928.0,81927.0,0.56081311]
[1744363610666,5.401e-05,81928.0,81927.0,0.56081311]
[1744363610966,0.12218311,81928.0,81927.0,0.56081311]
[1744363612266,0.12218311,81928.0,81927.0,0.43868251]
[1744363612463,0.15518311,81928.0,81927.0,0.43868251]
[1744363612768,0.15518311,81928.0,81927.0,0.4226]
[1744363613160,0.15518311,81928.0,81927.0,0.3926]
[1744363613359,0.1221381,81922.0,81921.0,0.0304]
[1744363613866,0.1221381,81922.0,81921.0,0.3912]
[1744363614257,0.1221381,81922.0,81921.0,0.4216]
[1744363614861,0.1553381,81922.0,81921.0,0.4216]
[1744363615066,0.1221381,81922.0,81921.0,0.0304]
[1744363615269,0.1221381,81922.0,81921.0,0.1525396]
[1744363615463,0.031,81923.0,81922.0,0.1221381]
[1744363615668,0.1221366,81923.0,81922.0,0.0611]
[1744363615863,0.1531366,81923.0,81922.0,0.0611]
[1744363616069,0.1863366,81923.0,81922.0,0.0611]
[1744363616366,0.1863766,81923.0,81922.0,0.01640132]
[1744363616559,0.5471366,81923.0,81922.0,0.01640132]
[1744363616759,0.5471766,81923.0,81922.0,0.01640132]
[1744363617168,0.1863766,81923.0,81922.0,0.01640132]
[1744363618668,0.1221766,81923.0,81922.0,0.01640132]
[1744363619061,0.1543766,81923.0,81922.0,0.01640132]
[1744363619760,0.1858766,81923.0,81922.0,0.01640132]
[1744363619961,0.122147,81916.0,81915.0,0.0610742]
[1744363620157,0.122147,81916.0,81915.0,0.1242742]
[1744363620567,0.0610715,81919.0,81918.0,0.122144]
[1744363620967,0.03185401,81922.0,81919.0,0.0610706]
[1744363621168,0.0318,81922.0,81921.0,0.1221396]
[1744363621471,0.0318,81922.0,81921.0,0.1382127]
[1744363621665,0.1539381,81922.0,81921.0,0.0160731]
[1744363622064,0.1539381,81922.0,81921.0,0.0465731]
[1744363622766,0.1539381,81922.0,81921.0,0.0160731]
[1744363622972,0.1221485,81915.0,81914.0,0.1866492]
[1744363624177,5.401e-05,81924.0,81923.0,0.1221366]
[1744363624568,0.153934,81925.0,81924.0,0.1221351]
[1744363625372,0.0318,81925.0,81924.0,0.1221351]
[1744363625870,0.03184,81925.0,81924.0,0.1221351]
[1744363626173,0.0318,81925.0,81924.0,0.1552351]
[1744363626366,0.03184,81925.0,81924.0,0.17123781]
[1744363626566,0.02684,81925.0,81924.0,0.17123781]
[1744363626975,4e-05,81925.0,81924.0,0.17123781]
[1744363627577,0.00018307,81929.0,81928.0,0.1221291]
[1744363627778,0.00018307,81929.0,81928.0,0.4829291]
[1744363628075,0.00018307,81929.0,81928.0,0.49893181]
[1744363628277,0.00022307,81929.0,81928.0,0.53203181]
[1744363630078,0.00022307,81929.0,81928.0,0.40990271]
[1744363631071,0.00022307,81929.0,81928.0,0.53203181]
[1744363633177,0.00018307,81929.0,81928.0,0.53203181]
[1744363633384,0.00022307,81929.0,81928.0,0.53203181]
[1744363635079,5.401e-05,81935.0,81934.0,0.1221202]
[1744363635471,5.401e-05,81935.0,81934.0,0.13812291]
[1744363635671,0.0328,81939.0,81938.0,0.1221142]
[1744363635868,0.0328,81939.0,81938.0,0.49891691]
[1744363636472,0.0328,81939.0,81938.0,0.53211691]
[1744363636883,0.01261737,81941.0,81940.0,0.1221113]
[1744363637176,5.401e-05,81945.0,81944.0,0.1221053]
[1744363637383,5.401e-05,81945.0,81944.0,0.13810801]
[1744363637578,0.03228307,81947.0,81946.0,0.1221023]
[1744363637875,0.03228307,81947.0,81946.0,0.4829023]
[1744363637876,0.00018307,81947.0,81946.0,0.4829023]
[1744363638273,0.00022307,81947.0,81946.0,0.4829023]
[1744363638980,0.00022307,81947.0,81946.0,0.49890501]
[1744363640788,0.0329,81984.0,81977.0,0.1220561]
[1744363640976,0.3608,81994.0,81977.0,0.4828561]
[1744363641179,0.0328,81992.0,81977.0,0.4828561]
[1744363641378,0.00044,81978.0,81977.0,0.49885881]
[1744363641780,0.0004,81978.0,81977.0,0.56325881]
[1744363641982,0.00044,81978.0,81977.0,0.56325881]
[1744363642177,9e-08,81986.0,81985.0,0.1220442]
[1744363642380,9e-08,81986.0,81985.0,0.4828442]
[1744363642682,9e-08,81986.0,81985.0,0.49884691]
[1744363643191,0.3,82000.0,81999.0,0.1220234]
[1744363643375,0.36214159,82006.0,82005.0,0.1220145]
[1744363643884,4e-05,82006.0,82005.0,0.1220145]
[1744363644685,0.01238345,82019.0,82018.0,0.1219951]
[1744363644884,5.401e-05,82020.0,82019.0,0.1219936]
[1744363645085,0.3608,82021.0,82020.0,0.1219921]
[1744363645388,0.3608,82021.0,82017.0,0.0609977]
[1744363645389,3.886e-05,82033.0,82018.0,0.0309]
[1744363645576,9.401e-05,82039.0,82029.0,0.3608]
[1744363645887,4e-05,82033.0,82029.0,0.36975506]
[1744363646086,4e-05,82033.0,82030.0,0.3608]
[1744363646595,4e-05,82033.0,82031.0,0.0312]
[1744363647677,0.1219743,82032.0,82031.0,0.0312]
[1744363648385,0.12307543,82032.0,82031.0,0.0312]
[1744363648589,0.00110113,82032.0,82031.0,0.0312]
[1744363648892,0.00110113,82032.0,82031.0,0.0612]
[1744363649087,0.00110113,82032.0,82031.0,0.3112]
[1744363649288,0.00114113,82032.0,82031.0,0.0612]
[1744363649690,0.12311543,82032.0,82031.0,0.0612]
[1744363650082,0.00114113,82032.0,82031.0,0.3112]
[1744363650689,0.00114113,82032.0,82031.0,0.0612]
[1744363651190,0.12311543,82032.0,82031.0,0.0612]
[1744363652980,0.00114113,82032.0,82031.0,0.1831758]
[1744363653180,0.00110113,82032.0,82031.0,0.1831758]
[1744363653396,0.00114113,82032.0,82031.0,0.1831758]
[1744363653580,0.00110113,82032.0,82031.0,0.1831758]
[1744363653784,0.12311543,82032.0,82031.0,0.0612]
[1744363653986,0.12339105,82032.0,82031.0,0.0612]
[1744363654591,0.12366667,82032.0,82031.0,0.0612]
[1744363654998,0.3608,82081.0,82042.0,0.0609792]
[1744363655191,0.0004,82050.0,82049.0,0.843549]
[1744363655380,0.1223475,82050.0,82049.0,0.843549]
[1744363655581,0.0004,82050.0,82049.0,0.843549]
[1744363655790,0.0004,82050.0,82049.0,0.873549]
[1744363656192,0.00044,82050.0,82049.0,0.873549]
[1744363657086,0.00114255,82050.0,82049.0,0.873549]
[1744363657288,0.3608,82101.0,82057.0,0.1223]
[1744363657494,0.0332,82121.0,82087.0,0.3608]
[1744363657687,0.0435256,82143.0,82120.0,0.3608]
[1744363657888,5.401e-05,82131.0,82130.0,0.06904984]
[1744363658083,0.0658,82149.0,82130.0,0.7216]
[1744363658387,0.0332,82149.0,82145.0,0.3608]
[1744363658586,0.12189552,82152.0,82145.0,0.8434065]
[1744363658792,0.3608,82204.0,82145.0,0.9716]
[1744363658993,0.1217621,82175.0,82167.0,0.3608]
[1744363659301,0.1217724,82168.0,82167.0,0.3608]
[1744363659593,0.1217724,82168.0,82142.0,0.0312]
[1744363659594,0.36089401,82168.0,82144.0,0.3608]
[1744363659894,0.1217947,82153.0,82152.0,0.3608]
[1744363660290,0.03099401,82167.0,82152.0,0.6108]
[1744363660291,0.0309,82167.0,82152.0,0.6108]
[1744363660491,0.0309,82167.0,82166.0,0.3608]
[1744363660689,0.1,82188.0,82166.0,0.6108]
[1744363660889,5.401e-05,82187.0,82184.0,0.3608]
[1744363661085,0.08,82188.0,82187.0,0.1217443]
[1744363661286,0.4825073,82212.0,82207.0,0.1217142]
[1744363661487,7.291e-05,82216.0,82211.0,0.421654]
[1744363661689,0.00013287,82220.0,82211.0,0.421654]
[1744363661690,0.00018056,82218.0,82215.0,0.3608]
[1744363661896,7.291e-05,82204.0,82198.0,0.31636666]
[1744363662085,0.1217413,82189.0,82188.0,0.3608]
[1744363662390,0.1218021,82148.0,82147.0,0.26128693]
[1744363662594,0.0608873,82167.0,82147.0,0.00048693]
[1744363662794,0.03,82166.0,82165.0,0.1217769]
[1744363663398,0.03,82166.0,82163.0,0.3608]
[1744363663604,0.1217872,82158.0,82157.0,0.0001826]
[1744363663786,0.0309,82165.0,82142.0,0.3608]
[1744363663993,0.0309,82157.0,82156.0,0.1217902]
[1744363664903,0.03094,82157.0,82156.0,0.1217902]
[1744363665193,0.03094,82157.0,82155.0,0.3608]
[1744363665404,0.0314,82156.0,82151.0,0.121797]
[1744363665590,0.0608992,82151.0,82148.0,0.0001826]
[1744363665900,0.1218006,82149.0,82148.0,0.0001826]
[1744363666386,0.1217934,82154.0,82148.0,0.0001826]
[1744363666592,0.1531934,82154.0,82148.0,0.0001826]
[1744363666792,0.1545954,82153.0,82148.0,0.0001826]
[1744363666999,0.0328,82153.0,82148.0,0.0001826]
[1744363667195,0.0314,82152.0,82148.0,0.0001826]
[1744363667397,0.0328,82151.0,82148.0,0.0001826]
[1744363667597,0.0328,82151.0,82148.0,0.1219838]
[1744363667902,0.0314,82150.0,82149.0,0.1218006]
[1744363668103,0.0314,82150.0,82148.0,0.0001826]
[1744363668292,0.0327,82149.0,82148.0,0.1219847]
[1744363668694,0.0608901,82163.0,82148.0,0.0001826]
[1744363668894,4e-05,82149.0,82148.0,0.1219847]
[1744363669290,4e-05,82149.0,82148.0,0.0001826]
[1744363669606,0.3718406,82149.0,82148.0,0.0001826]
[1744363671200,0.0609119,82134.0,82120.0,0.3608]
[1744363671408,0.1218358,82126.0,82120.0,0.3608]
[1744363671896,0.0635,82125.0,82120.0,0.3608]
[1744363672396,0.1218377,82124.0,82120.0,0.3608]
[1744363672604,0.0635,82125.0,82120.0,0.3608]
[1744363672808,0.0635,82124.0,82120.0,0.3608]
[1744363673501,0.0635,82124.0,82123.0,0.12232617]
[1744363674110,0.06354,82124.0,82123.0,0.12232617]
[1744363674810,0.1853777,82124.0,82123.0,0.00048707]
[1744363675212,0.121848,82117.0,82116.0,0.0001826]
[1744363675404,0.1218718,82101.0,82094.0,0.1218808]
[1744363675601,0.4826718,82101.0,82091.0,0.3608]
[1744363676013,0.1218852,82092.0,82091.0,0.3608]
[1744363676312,0.3608,82092.0,82080.0,0.0609514]
[1744363676607,0.0629,82091.0,82086.0,0.060947]
[1744363676798,0.0609212,82121.0,82112.0,0.1218549]
[1744363677003,0.0322,82108.0,82107.0,0.1218629]
[1744363678324,0.03224,82108.0,82107.0,0.1218629]
[1744363678625,0.03224,82108.0,82105.0,0.7216]
[1744363678825,0.0329,82107.0,82106.0,0.1218644]
[1744363679417,0.00018271,82116.0,82115.0,0.121851]
[1744363679619,0.00018271,82116.0,82115.0,0.482651]
[1744363679819,0.00022271,82116.0,82115.0,0.482651]
[1744363680023,0.00018271,82116.0,82115.0,0.482651]
[1744363680326,0.00022271,82116.0,82115.0,0.514051]
[1744363680526,0.00018271,82116.0,82115.0,0.514051]
[1744363680730,0.00022271,82116.0,82115.0,0.514051]
[1744363680926,0.00022271,82116.0,82115.0,0.3608]
[1744363681119,0.12207221,82116.0,82115.0,0.3608]
[1744363681323,0.00022271,82116.0,82115.0,0.482651]
[1744363681518,0.1857495,82116.0,82115.0,0.3608]
[1744363681719,0.0639,82116.0,82115.0,0.3608]
[1744363682023,0.0004,82122.0,82121.0,0.1218421]
[1744363682529,0.0004,82122.0,82115.0,0.3608]
[1744363682719,0.1218429,82121.0,82119.0,0.1218443]
[1744363682923,0.1218474,82118.0,82115.0,0.3608]
[1744363683220,0.0311,82117.0,82115.0,0.3608]
[1744363683414,0.032,82116.0,82115.0,0.482651]
[1744363684029,0.03204,82116.0,82115.0,0.482651]
[1744363684526,0.1538895,82116.0,82115.0,0.3608]
[1744363684722,0.1218552,82113.0,82110.0,0.1218576]
[1744363684925,0.032,82112.0,82077.0,0.0609531]
[1744363685126,0.1218644,82106.0,82099.0,0.15325741]
[1744363685427,0.1218644,82106.0,82099.0,0.12205681]
[1744363685628,0.0622,82112.0,82099.0,0.00018271]
[1744363685827,0.1218733,82100.0,82099.0,0.00018271]
[1744363686621,0.5459133,82100.0,82099.0,0.00018271]
[1744363687226,0.06324,82100.0,82099.0,0.00018271]
[1744363687526,0.00018271,82114.0,82113.0,0.121854]
[1744363687728,0.15363521,82114.0,82113.0,0.3608]
[1744363687915,0.03178271,82114.0,82106.0,0.3608]
[1744363688119,0.1218585,82110.0,82109.0,0.3608]
[1744363688321,0.0316,82113.0,82109.0,0.3608]
[1744363688529,0.0316,82112.0,82111.0,0.121857]
[1744363689318,0.03164,82112.0,82109.0,0.3608]
[1744363689524,0.0313,82111.0,82109.0,0.3608]
[1744363689833,0.1218591,82110.0,82106.0,0.4826638]
[1744363690035,0.1527591,82110.0,82106.0,0.3608]
[1744363690333,0.0313,82109.0,82106.0,0.4826642]
[1744363690735,0.0309,82108.0,82106.0,0.3608]
[1744363691030,0.1218629,82107.0,82106.0,0.3608]
[1744363691219,0.1218733,82100.0,82093.0,0.121883]
[1744363691425,0.1218733,82100.0,82099.0,0.00018271]
[1744363691820,0.0622,82100.0,82099.0,0.00018271]
[1744363692026,0.06224,82100.0,82099.0,0.00018271]
[1744363692521,0.0622,82100.0,82099.0,0.12205751]
[1744363692723,0.06224,82100.0,82099.0,0.12205751]
[1744363692926,4e-05,82100.0,82099.0,0.12205751]
[1744363693133,0.0309,82106.0,82099.0,0.03038271]
[1744363693438,0.0609337,82104.0,82103.0,0.3608]
[1744363694035,0.0918337,82104.0,82103.0,0.3608]
[1744363694426,0.1218733,82100.0,82099.0,0.00018271]
[1744363694827,0.3718733,82100.0,82099.0,0.00018271]
[1744363695329,0.25,82100.0,82085.0,0.43958574]
[1744363695534,0.1218941,82086.0,82085.0,0.43958574]
[1744363697323,0.1218941,82086.0,82085.0,0.39047654]
[1744363697637,0.1219059,82078.0,82077.0,0.00018271]
[1744363698536,0.1862059,82078.0,82077.0,0.00018271]
[1744363700123,0.19542984,82078.0,82077.0,0.00018271]
[1744363700324,0.1219312,82061.0,82060.0,0.3608]
[1744363700528,0.3608,82065.0,82057.0,0.3608]
[1744363700729,0.031,82071.0,82064.0,0.3608]
[1744363700934,0.1219238,82066.0,82065.0,0.0311]
[1744363701135,0.1219238,82066.0,82065.0,0.0612]
[1744363702337,0.031,82071.0,82067.0,0.0609605]
[1744363702530,0.0329,82077.0,82071.0,0.1219157]
[1744363702838,0.1548077,82077.0,82073.0,0.4827134]
[1744363703029,0.1219095,82076.0,82073.0,0.4827134]
[1744363703230,0.00022271,82074.0,82073.0,0.5473134]
[1744363703534,0.0928519,82080.0,82073.0,0.5473134]
[1744363703535,0.0609419,82093.0,82082.0,0.0609495]
[1744363703733,0.121897,82084.0,82083.0,0.0329]
[1744363704037,0.1219073,82078.0,82077.0,0.1219057]
[1744363704235,0.1219073,82078.0,82077.0,0.0329]
[1744363704738,0.0319,82079.0,82077.0,0.0329]
[1744363704931,0.0319,82079.0,82078.0,0.1219059]
[1744363705127,0.0643,82079.0,82078.0,0.1219059]
[1744363705331,0.1862045,82079.0,82078.0,0.1529059]
[1744363706226,0.1219119,82074.0,82073.0,0.3608]
[1744363706429,0.12191,82076.0,82075.0,0.1219102]
[1744363706842,0.1828598,82078.0,82077.0,0.1219074]
[1744363707037,0.1219089,82076.0,82075.0,0.0609546]
[1744363707636,0.0609414,82094.0,82085.0,0.1218955]
[1744363707837,0.1218935,82087.0,82085.0,0.4826955]
[1744363708039,0.12207681,82086.0,82085.0,0.3608]
[1744363708242,0.1219089,82076.0,82075.0,0.3608]
[1744363708443,0.1219089,82076.0,82075.0,0.4827104]
[1744363708641,0.0643,82077.0,82075.0,0.3608]
[1744363708947,0.1219089,82076.0,82075.0,0.3608]
[1744363709338,0.1862089,82076.0,82075.0,0.3608]
[1744363710545,0.1219178,82070.0,82069.0,0.36098271]
[1744363710749,0.1219178,82070.0,82069.0,0.00018271]
[1744363711341,0.1869178,82070.0,82069.0,0.00018271]
[1744363711538,0.065,82070.0,82053.0,0.21594562]
[1744363711743,0.1219416,82054.0,82053.0,0.21594562]
[1744363711943,0.0609632,82065.0,82051.0,0.0004875]
[1744363712146,0.0331,82053.0,82051.0,0.0004875]
[1744363712548,0.1550445,82053.0,82051.0,0.0004875]
[1744363712751,0.0319,82057.0,82051.0,0.0335875]
[1744363712949,0.0319,82057.0,82056.0,0.4827386]
[1744363713150,0.03194,82057.0,82056.0,0.4827386]
[1744363713353,4e-05,82057.0,82056.0,0.4827386]
[1744363713556,0.00018271,82060.0,82059.0,0.1219342]
[1744363713747,0.00018271,82060.0,82059.0,0.4827342]
[1744363714956,0.00022271,82060.0,82059.0,0.4827342]
[1744363716948,0.12215541,82060.0,82059.0,0.3608]
[1744363717755,0.18745541,82060.0,82059.0,0.3608]
[1744363718757,0.06552271,82060.0,82059.0,0.4827342]
[1744363718958,0.00022271,82060.0,82059.0,0.4827342]
[1744363719161,0.00018271,82060.0,82059.0,0.4827342]
[1744363719459,0.00022271,82060.0,82059.0,0.4827342]
[1744363720551,0.00018271,82060.0,82059.0,0.4827342]
[1744363720757,0.00022271,82060.0,82059.0,0.4827342]
[1744363721460,5.401e-05,82070.0,82069.0,0.1219193]
[1744363721661,0.0609483,82085.0,82069.0,0.1219193]
[1744363721662,0.060953,82078.0,82076.0,0.121908]
[1744363721861,0.1219074,82077.0,82076.0,0.121908]
[1744363722764,0.06244,82077.0,82076.0,0.121908]
[1744363724065,0.06244,82077.0,82076.0,0.482708]
[1744363724466,0.1843474,82077.0,82076.0,0.482708]
[1744363727472,4e-05,82077.0,82076.0,0.482708]
[1744363727767,0.1219025,82081.0,82080.0,0.121903]
[1744363728569,0.1859025,82081.0,82080.0,0.121903]
[1744363729068,0.1219045,82079.0,82078.0,0.0609522]
[1744363729267,0.1219074,82077.0,82076.0,0.3608]
[1744363729971,0.1531074,82077.0,82076.0,0.3608]
[1744363730368,0.1219149,82072.0,82071.0,0.0314]
[1744363730569,0.1219178,82070.0,82069.0,0.3608]
[1744363731373,0.1219193,82069.0,82068.0,0.00018271]
[1744363731767,0.5446193,82069.0,82068.0,0.00018271]
[1744363731971,0.1219446,82052.0,82051.0,0.3612875]
[1744363732771,0.19479196,82052.0,82051.0,0.3612875]
[1744363733166,0.1856446,82052.0,82051.0,0.3612875]
[1744363733665,0.1856846,82052.0,82051.0,0.3612875]
[1744363734578,0.1856446,82052.0,82051.0,0.3612875]
[1744363734770,0.1856846,82052.0,82051.0,0.3612875]
[1744363735579,0.01004624,82059.0,82058.0,0.1219357]
[1744363735783,0.0617,82059.0,82058.0,0.4827357]
[1744363736070,0.06174,82059.0,82058.0,0.4827357]
[1744363736878,0.1836742,82059.0,82058.0,0.4827357]
[1744363737081,0.1836742,82059.0,82058.0,0.3608]
[1744363737372,0.1836742,82059.0,82058.0,0.4827357]
[1744363737578,0.1836742,82059.0,82058.0,0.5134357]
[1744363738081,0.1836742,82059.0,82058.0,0.3915]
[1744363739674,0.06174,82059.0,82058.0,0.5134357]
[1744363739871,4e-05,82059.0,82058.0,0.5134357]
[1744363740074,0.00018271,82060.0,82059.0,0.1219342]
[1744363740277,0.12211541,82060.0,82059.0,0.1845342]
[1744363740478,0.12211541,82060.0,82059.0,0.0626]
[1744363740983,0.12211541,82060.0,82059.0,0.1845342]
[1744363741668,0.12211541,82060.0,82059.0,0.0318]
[1744363742474,0.1219342,82059.0,82058.0,0.3608]
[1744363742674,0.1853342,82059.0,82058.0,0.3608]
[1744363743179,0.1219446,82052.0,82051.0,0.3612875]
[1744363744082,0.1853446,82052.0,82051.0,0.3612875]
[1744363745684,0.0634,82052.0,82051.0,0.4832336]
[1744363745881,0.0634,82052.0,82051.0,0.3612875]
[1744363745882,0.1853446,82052.0,82051.0,0.3612875]
[1744363746180,0.19462558,82052.0,82051.0,0.3612875]
[1744363753383,0.13122558,82052.0,82051.0,0.3612875]
[1744363753587,0.01009936,82059.0,82051.0,0.3612875]
[1744363753890,0.0609679,82058.0,82052.0,0.0319]
[1744363754088,0.1219399,82056.0,82055.0,0.1219388]
[1744363754289,0.1829447,82058.0,82057.0,0.1219371]
[1744363754590,0.1219393,82056.0,82055.0,0.1219394]
[1744363754781,0.1219401,82055.0,82054.0,0.0319]
[1744363754979,4e-05,82058.0,82054.0,0.0928703]
[1744363755180,4e-05,82058.0,82057.0,0.1219371]
[1744363755578,0.00018271,82060.0,82057.0,0.1219371]
[1744363755579,0.00018271,82060.0,82059.0,0.1219342]
[1744363755778,0.21801963,82069.0,82068.0,0.1219208]
[1744363756382,0.21805963,82069.0,82068.0,0.1526208]
[1744363756683,4e-05,82069.0,82068.0,0.1526208]
[1744363757487,0.1219593,82069.0,82068.0,0.0307]
[1744363758181,0.1219593,82069.0,82068.0,0.1526208]
[1744363760190,0.0663,82087.0,82075.0,0.1219104]
[1744363760387,0.00510927,82085.0,82084.0,0.121897]
[1744363760587,0.1218955,82085.0,82084.0,0.482697]
[1744363760779,0.1219355,82085.0,82084.0,0.482697]
[1744363761993,4e-05,82085.0,82084.0,0.482697]
[1744363762488,4e-05,82085.0,82084.0,0.3608]
[1744363762692,0.1219355,82085.0,82084.0,0.3608]
[1744363763094,0.1219,82082.0,82081.0,0.0331]
[1744363763395,0.1219,82082.0,82081.0,0.1550015]
[1744363763585,0.1219,82082.0,82081.0,0.0331]
[1744363763791,0.1219,82082.0,82081.0,0.1550015]
[1744363763990,0.0623,82082.0,82081.0,0.1550015]
[1744363764582,0.0623,82082.0,82081.0,0.1524015]
[1744363766597,0.1842,82082.0,82081.0,0.1524015]
[1744363766796,0.0623,82082.0,82081.0,0.1524015]
[1744363766990,4e-05,82085.0,82084.0,0.121897]
[1744363767186,0.1218933,82087.0,82086.0,0.1218911]
[1744363767492,0.12194731,82087.0,82086.0,0.1218911]
[1744363767693,0.18514731,82087.0,82086.0,0.1218911]
[1744363767999,0.1218955,82085.0,82084.0,0.482697]
[1744363768390,0.1218955,82085.0,82084.0,0.3608]
[1744363768597,0.1218955,82085.0,82084.0,0.482697]
[1744363768896,0.1218947,82086.0,82084.0,0.4217478]
[1744363769091,0.1218947,82086.0,82085.0,0.0331]
[1744363769293,7.291e-05,82089.0,82085.0,0.0940475]
[1744363769601,0.1218926,82087.0,82086.0,0.0312]
[1744363769794,0.1218926,82087.0,82086.0,0.0643]
[1744363769992,0.1218926,82087.0,82086.0,0.0331]
[1744363771197,0.1218955,82085.0,82084.0,0.3608]
[1744363771399,0.1218955,82085.0,82084.0,0.482697]
[1744363771590,0.1218955,82085.0,82084.0,0.3608]
[1744363771786,0.1218955,82085.0,82084.0,0.482697]
[1744363771991,7.291e-05,82089.0,82084.0,0.482697]
[1744363771992,7.291e-05,82089.0,82084.0,0.3608]
[1744363772203,9.842e-05,82107.0,82101.0,0.1218718]
[1744363772395,9.842e-05,82107.0,82106.0,0.1218644]
[1744363772588,0.1218428,82121.0,82111.0,0.0609279]
[1744363772785,0.06995401,82118.0,82117.0,0.121848]
[1744363772990,0.0699,82118.0,82117.0,0.121848]
[1744363773185,0.06994,82118.0,82117.0,0.121848]
[1744363773589,0.0699,82118.0,82117.0,0.121848]
[1744363773794,0.06994,82118.0,82117.0,0.121848]
[1744363773997,0.1218525,82114.0,82113.0,0.3608]
[1744363774300,0.1218525,82114.0,82113.0,0.391]
[1744363774799,0.1218525,82114.0,82113.0,0.512854]
[1744363775403,0.060924,82117.0,82113.0,0.512854]
[1744363775594,0.1218518,82115.0,82114.0,0.1544521]
[1744363775797,0.06994,82118.0,82117.0,0.121848]
[1744363775991,0.0699,82118.0,82117.0,0.121848]
[1744363776197,0.0699,82118.0,82116.0,0.3608]
[1744363776391,0.1917866,82118.0,82117.0,0.0309]
[1744363776797,0.121848,82117.0,82116.0,0.3608]
[1744363781794,0.1218852,82092.0,82091.0,0.3608]
[1744363782198,0.1218829,82094.0,82091.0,0.3608]
[1744363782401,0.1218829,82094.0,82092.0,0.0302]
[1744363782599,0.0609374,82099.0,82092.0,0.0302]
[1744363782996,0.0609396,82096.0,82092.0,0.0302]
[1744363783197,0.0609348,82103.0,82092.0,0.0302]
[1744363783409,0.1218837,82093.0,82092.0,0.545384]
[1744363783909,0.1218743,82100.0,82092.0,0.4235]
[1744363784109,0.121877,82098.0,82097.0,0.1218771]
[1744363785410,0.1218807,82096.0,82095.0,0.1218803]
[1744363785602,0.1218837,82093.0,82092.0,0.4519425]
[1744363785802,0.1218837,82093.0,82092.0,0.3608]
[1744363788422,0.1519837,82093.0,82092.0,0.3608]
[1744363789319,0.0609503,82082.0,82069.0,0.3608]
[1744363789621,0.0609515,82080.0,82076.0,0.1219079]
[1744363789815,0.3608,82079.0,82077.0,0.0915532]
[1744363790010,0.1219035,82080.0,82078.0,0.0932526]
[1744363790214,0.0699,82081.0,82080.0,0.121903]
[1744363790418,0.0609455,82088.0,82085.0,0.1218941]
[1744363790720,0.1218926,82087.0,82086.0,0.0637]
[1744363790925,0.1541926,82087.0,82086.0,0.0637]
[1744363791122,0.1218926,82087.0,82086.0,0.1855941]
[1744363791521,0.1219326,82087.0,82086.0,0.1855941]
[1744363791721,4e-05,82087.0,82086.0,0.1855941]
[1744363792030,0.12207291,82089.0,82088.0,0.1218911]
[1744363792519,0.12207231,82089.0,82088.0,0.1218911]
[1744363795327,0.12211231,82089.0,82088.0,0.1218911]
[1744363795525,0.12207231,82089.0,82088.0,0.1218911]
[1744363795823,0.12211231,82089.0,82088.0,0.1218911]
[1744363797130,0.00022271,82089.0,82088.0,0.4826911]
[1744363797629,0.2437665,82094.0,82093.0,0.1218822]
[1744363798231,0.1218843,82094.0,82093.0,0.1218822]
[1744363799115,0.0699,82096.0,82092.0,0.0609419]
[1744363799431,0.1828099,82100.0,82099.0,0.1218733]
[1744363799619,0.2156099,82100.0,82099.0,0.1218733]
[1744363799820,0.2488099,82100.0,82099.0,0.1218733]
[1744363800431,0.0609366,82100.0,82099.0,0.1218733]
[1744363800616,0.0699,82101.0,82097.0,0.182815]
[1744363800617,0.0699,82101.0,82100.0,0.1218733]
[1744363800826,0.1917718,82101.0,82100.0,0.3608]
[1744363801122,0.0699,82101.0,82100.0,0.1218733]
[1744363801319,0.1918118,82101.0,82100.0,0.1218733]
[1744363801523,0.1218807,82095.0,82094.0,0.3608]
[1744363801724,0.1218807,82095.0,82094.0,0.4826822]
[1744363801925,0.1546739,82100.0,82099.0,0.1218748]
[1744363802133,0.1858739,82100.0,82099.0,0.1218748]
[1744363804423,0.1218739,82100.0,82099.0,0.1218748]
[1744363804628,0.06994,82101.0,82100.0,0.1218733]
[1744363805026,0.1918118,82101.0,82100.0,0.1218733]
[1744363805228,0.06994,82101.0,82100.0,0.1218733]
[1744363805435,0.0609319,82107.0,82100.0,0.1218733]
[1744363805436,7.291e-05,82120.0,82113.0,0.121854]
[1744363805632,0.0316,82123.0,82121.0,0.1218421]
[1744363805832,0.1218396,82123.0,82121.0,0.4826421]
[1744363806031,0.1222406,82122.0,82121.0,0.4826421]
[1744363806427,0.0004,82122.0,82121.0,0.4826421]
[1744363806629,0.00018093,82130.0,82129.0,0.1218302]
[1744363806844,0.00018093,82130.0,82129.0,0.4826302]
[1744363807131,0.16388386,82155.0,82154.0,0.1217932]
[1744363807341,0.41332998,82158.0,82157.0,0.1217887]
[1744363807633,0.41327156,82158.0,82157.0,0.1217887]
[1744363807834,0.41323156,82158.0,82157.0,0.1217887]
[1744363808029,0.41327156,82158.0,82157.0,0.1217887]
[1744363808235,0.41323156,82158.0,82157.0,0.1217887]
[1744363808436,0.41327156,82158.0,82157.0,0.1217887]
[1744363808830,0.1217917,82155.0,82154.0,0.3608]
[1744363809232,0.1217991,82150.0,82149.0,0.00018258]
[1744363809426,0.1217991,82150.0,82149.0,8e-08]
[1744363809631,0.7325991,82150.0,82149.0,8e-08]
[1744363809828,1.0294,82150.0,82115.0,0.3608]
[1744363810027,0.1218495,82116.0,82115.0,0.3608]
[1744363810232,0.12136243,82116.0,82115.0,0.3608]
[1744363810442,0.1218688,82103.0,82102.0,0.3608]
[1744363811032,0.0618,82104.0,82102.0,0.3608]
[1744363811033,0.0618,82104.0,82103.0,0.1218688]
[1744363811337,0.1218688,82103.0,82102.0,0.3608]
[1744363811841,0.1833688,82103.0,82102.0,0.3608]
[1744363812428,0.0615,82103.0,82102.0,0.4826703]
[1744363812736,5.401e-05,82121.0,82110.0,0.1218584]
[1744363813141,0.0303,82122.0,82110.0,0.1218584]
[1744363813642,0.1218584,82110.0,82109.0,0.3608]
[1744363813842,0.1833584,82110.0,82109.0,0.4826599]
[1744363814438,0.1833584,82110.0,82109.0,0.3608]
[1744363814640,0.1833584,82110.0,82100.0,0.0327]